[Event "Late-Titled-Tuesday-Blitz-October-24-2023"]
[Site "Chess.com"]
[Date "2023.10.24"]
[Round "2"]
[White "Balla_Tamas"]
[Black "HamedWafa4"]
[Result "1-0"]
[WhiteElo "2347"]
[BlackElo "2594"]
[TimeControl "180+1"]
[EndTime "14:19:51 PDT"]
[Termination "Balla_Tamas won by checkmate"]

1. e4 {[%clk 0:02:59.1]} 1... e5 {[%clk 0:02:58.1]} 2. Nf3 {[%clk 0:02:49.9]}
2... Nc6 {[%clk 0:02:57.5]} 3. d4 {[%clk 0:02:50.2]} 3... exd4 {[%clk
0:02:57.1]} 4. Nxd4 {[%clk 0:02:51.1]} 4... Bc5 {[%clk 0:02:57.1]} 5. Nb3 {[%clk
0:02:51.3]} 5... Bb6 {[%clk 0:02:56.9]} 6. Nc3 {[%clk 0:02:52]} 6... Nge7 {[%clk
0:02:56.7]} 7. Qe2 {[%clk 0:02:52.6]} 7... O-O {[%clk 0:02:56.5]} 8. Be3 {[%clk
0:02:53.2]} 8... f5 {[%clk 0:02:57.2]} 9. f3 {[%clk 0:02:50.4]} 9... f4 {[%clk
0:02:56.8]} 10. Bxb6 {[%clk 0:02:49.9]} 10... axb6 {[%clk 0:02:57.7]} 11. O-O-O
{[%clk 0:02:49.8]} 11... Ne5 {[%clk 0:02:57.6]} 12. Kb1 {[%clk 0:02:44.7]} 12...
N7c6 {[%clk 0:02:56.8]} 13. Nd5 {[%clk 0:02:35.4]} 13... d6 {[%clk 0:02:55.7]}
14. Qd2 {[%clk 0:02:32.1]} 14... Ng6 {[%clk 0:02:54.8]} 15. h4 {[%clk
0:02:30.1]} 15... h5 {[%clk 0:02:52.3]} 16. Nd4 {[%clk 0:02:12.4]} 16... Nxd4
{[%clk 0:02:26.5]} 17. Qxd4 {[%clk 0:02:13.3]} 17... Be6 {[%clk 0:02:26.3]} 18.
Bc4 {[%clk 0:02:09.5]} 18... Ne5 {[%clk 0:02:14.2]} 19. Bb3 {[%clk 0:01:44.2]}
19... Qd7 {[%clk 0:01:58.9]} 20. Nxc7 {[%clk 0:01:21.1]} 20... Bxb3 {[%clk
0:01:45.9]} 21. Nxa8 {[%clk 0:01:21.1]} 21... Bxa2+ {[%clk 0:01:32.1]} 22. Kxa2
{[%clk 0:01:17.3]} 22... Rxa8+ {[%clk 0:01:32.7]} 23. Kb1 {[%clk 0:01:17.6]}
23... Kh8 {[%clk 0:01:33.2]} 24. Qxe5 {[%clk 0:01:10.5]} 24... Ra1+ {[%clk
0:01:30.6]} 25. Kxa1 {[%clk 0:01:04.4]} 25... Qa4+ {[%clk 0:01:30.1]} 26. Kb1
{[%clk 0:01:03.1]} 26... dxe5 {[%clk 0:01:30.7]} 27. Rd5 {[%clk 0:00:59.6]}
27... Qc4 {[%clk 0:01:14.9]} 28. Rxe5 {[%clk 0:00:53.7]} 28... Qe2 {[%clk
0:01:15.2]} 29. Rxh5+ {[%clk 0:00:53.8]} 29... Kg8 {[%clk 0:01:15.5]} 30. Rg5
{[%clk 0:00:54.5]} 30... b5 {[%clk 0:01:15.7]} 31. h5 {[%clk 0:00:53.3]} 31...
Kf7 {[%clk 0:01:16]} 32. b3 {[%clk 0:00:33.1]} 32... b4 {[%clk 0:01:10.6]} 33.
Rf5+ {[%clk 0:00:28.3]} 33... Ke6 {[%clk 0:01:08.4]} 34. Rxf4 {[%clk 0:00:26.9]}
34... Qxg2 {[%clk 0:01:08.3]} 35. Rd1 {[%clk 0:00:27.4]} 35... Qe2 {[%clk
0:01:05.1]} 36. Rd3 {[%clk 0:00:25.4]} 36... Qe1+ {[%clk 0:01:02.3]} 37. Kb2
{[%clk 0:00:24.8]} 37... Qh1 {[%clk 0:00:53.8]} 38. Rf5 {[%clk 0:00:24.1]} 38...
Qh4 {[%clk 0:00:37.8]} 39. Rfd5 {[%clk 0:00:19.8]} 39... Qf6+ {[%clk 0:00:37.8]}
40. e5 {[%clk 0:00:19.2]} 40... Qf4 {[%clk 0:00:36.7]} 41. Rd6+ {[%clk
0:00:18.3]} 41... Ke7 {[%clk 0:00:35.4]} 42. Rd7+ {[%clk 0:00:17.4]} 42... Ke6
{[%clk 0:00:35.6]} 43. R7d6+ {[%clk 0:00:13.7]} 43... Ke7 {[%clk 0:00:35.8]} 44.
e6 {[%clk 0:00:14.3]} 44... Qe5+ {[%clk 0:00:35.4]} 45. R3d4 {[%clk 0:00:13.1]}
45... Qe1 {[%clk 0:00:35.2]} 46. Rd7+ {[%clk 0:00:06]} 46... Ke8 {[%clk
0:00:35.7]} 47. e7 {[%clk 0:00:05.3]} 47... Qc3+ {[%clk 0:00:36]} 48. Kc1 {[%clk
0:00:05.9]} 48... Qe1+ {[%clk 0:00:36.1]} 49. Rd1 {[%clk 0:00:06.5]} 49... Qe3+
{[%clk 0:00:36.5]} 50. Kb1 {[%clk 0:00:07]} 50... Qxf3 {[%clk 0:00:34.4]} 51.
Re1 {[%clk 0:00:02.7]} 51... Kxd7 {[%clk 0:00:19.4]} 52. e8=Q+ {[%clk
0:00:02.7]} 52... Kc7 {[%clk 0:00:20.3]} 53. Qe5+ {[%clk 0:00:02.4]} 53... Kb6
{[%clk 0:00:20.1]} 54. Qe6+ {[%clk 0:00:02.5]} 54... Ka7 {[%clk 0:00:20.3]} 55.
Qe4 {[%clk 0:00:02.2]} 55... Qf7 {[%clk 0:00:19.6]} 56. Qxb4 {[%clk 0:00:01.3]}
56... Qxh5 {[%clk 0:00:17.7]} 57. Qd4+ {[%clk 0:00:01.8]} 57... Ka6 {[%clk
0:00:16.7]} 58. Rd1 {[%clk 0:00:02.7]} 58... b6 {[%clk 0:00:15.7]} 59. Qc4+
{[%clk 0:00:03.2]} 59... b5 {[%clk 0:00:14.4]} 60. Qc6+ {[%clk 0:00:02.8]} 60...
Ka5 {[%clk 0:00:14.6]} 61. Qc7+ {[%clk 0:00:03.2]} 61... Kb4 {[%clk 0:00:15.1]}
62. Rd4+ {[%clk 0:00:02]} 62... Ka3 {[%clk 0:00:13.7]} 63. Qa5# {[%clk
0:00:02.7]} 1-0

[Event "Late-Titled-Tuesday-Blitz-October-24-2023"]
[Site "Chess.com"]
[Date "2023.10.24"]
[Round "2"]
[White "Haykoooo0o"]
[Black "Willi_Skibbe"]
[Result "0-1"]
[WhiteElo "2450"]
[BlackElo "2209"]
[TimeControl "180+1"]
[EndTime "14:19:54 PDT"]
[Termination "Willi_Skibbe won by checkmate"]

1. d4 {[%clk 0:02:49.3]} 1... d5 {[%clk 0:02:59.6]} 2. Nf3 {[%clk 0:02:49.4]}
2... Nf6 {[%clk 0:02:59.5]} 3. e3 {[%clk 0:02:50]} 3... e6 {[%clk 0:02:58.5]} 4.
Bd3 {[%clk 0:02:50.2]} 4... b6 {[%clk 0:02:58.8]} 5. Ne5 {[%clk 0:02:49.8]} 5...
Bb7 {[%clk 0:02:58.5]} 6. f4 {[%clk 0:02:46.7]} 6... Nbd7 {[%clk 0:02:57.8]} 7.
Nd2 {[%clk 0:02:46.6]} 7... Bd6 {[%clk 0:02:55.2]} 8. Qf3 {[%clk 0:02:45.9]}
8... Qe7 {[%clk 0:02:51.9]} 9. O-O {[%clk 0:02:45.6]} 9... O-O-O {[%clk
0:02:51.1]} 10. c3 {[%clk 0:02:42.2]} 10... Kb8 {[%clk 0:02:50.3]} 11. e4 {[%clk
0:02:42]} 11... dxe4 {[%clk 0:02:48.2]} 12. Nxe4 {[%clk 0:02:42.9]} 12... Nd5
{[%clk 0:02:34.8]} 13. Qe2 {[%clk 0:02:35.1]} 13... f6 {[%clk 0:02:24.2]} 14.
Nxd7+ {[%clk 0:02:31]} 14... Qxd7 {[%clk 0:02:24.3]} 15. Nxd6 {[%clk 0:02:26.1]}
15... cxd6 {[%clk 0:02:19.3]} 16. Bd2 {[%clk 0:02:26.1]} 16... f5 {[%clk
0:02:12.7]} 17. Rae1 {[%clk 0:02:24.6]} 17... Rhe8 {[%clk 0:02:11.8]} 18. c4
{[%clk 0:02:22]} 18... Nf6 {[%clk 0:02:11.4]} 19. Bc3 {[%clk 0:02:22]} 19... Be4
{[%clk 0:02:09.1]} 20. Qc2 {[%clk 0:02:13]} 20... Bxd3 {[%clk 0:02:08.2]} 21.
Qxd3 {[%clk 0:02:13.9]} 21... d5 {[%clk 0:02:05.5]} 22. b3 {[%clk 0:02:03.9]}
22... Ne4 {[%clk 0:02:05.1]} 23. Re3 {[%clk 0:02:04.2]} 23... dxc4 {[%clk
0:01:56.8]} 24. bxc4 {[%clk 0:02:01.1]} 24... Nxc3 {[%clk 0:01:52.2]} 25. Qxc3
{[%clk 0:01:57.9]} 25... Qxd4 {[%clk 0:01:52.9]} 26. Qxd4 {[%clk 0:01:55.1]}
26... Rxd4 {[%clk 0:01:53.8]} 27. Rc3 {[%clk 0:01:50.3]} 27... Rc8 {[%clk
0:01:52.5]} 28. Re1 {[%clk 0:01:45.3]} 28... Rxf4 {[%clk 0:01:49.2]} 29. Rxe6
{[%clk 0:01:42.9]} 29... Rfxc4 {[%clk 0:01:49.4]} 30. Rxc4 {[%clk 0:01:40.4]}
30... Rxc4 {[%clk 0:01:49.2]} 31. Re8+ {[%clk 0:01:41.3]} 31... Rc8 {[%clk
0:01:49]} 32. Re7 {[%clk 0:01:41.1]} 32... Rc7 {[%clk 0:01:49.4]} 33. Re5 {[%clk
0:01:40.4]} 33... g6 {[%clk 0:01:49.7]} 34. Kf2 {[%clk 0:01:36.6]} 34... Rd7
{[%clk 0:01:49.2]} 35. Kg3 {[%clk 0:01:34.6]} 35... Kb7 {[%clk 0:01:48.2]} 36.
Kh4 {[%clk 0:01:35]} 36... b5 {[%clk 0:01:47.7]} 37. Kg5 {[%clk 0:01:35.1]}
37... Kb6 {[%clk 0:01:47.8]} 38. Kh6 {[%clk 0:01:35]} 38... a5 {[%clk
0:01:47.1]} 39. h4 {[%clk 0:01:32.4]} 39... b4 {[%clk 0:01:39]} 40. Re8 {[%clk
0:01:30]} 40... Rd4 {[%clk 0:01:28.6]} 41. g3 {[%clk 0:01:27]} 41... Rg4 {[%clk
0:01:27.4]} 42. Kxh7 {[%clk 0:01:24.2]} 42... Rxg3 {[%clk 0:01:27.7]} 43. Re6+
{[%clk 0:01:24.8]} 43... Kb5 {[%clk 0:01:25.9]} 44. Rxg6 {[%clk 0:01:25.7]}
44... Rxg6 {[%clk 0:01:18]} 45. Kxg6 {[%clk 0:01:24.1]} 45... f4 {[%clk
0:01:18.8]} 46. h5 {[%clk 0:01:25]} 46... f3 {[%clk 0:01:19.6]} 47. h6 {[%clk
0:01:25.9]} 47... f2 {[%clk 0:01:20.5]} 48. h7 {[%clk 0:01:26.8]} 48... f1=Q
{[%clk 0:01:21.4]} 49. h8=Q {[%clk 0:01:27]} 49... Qd3+ {[%clk 0:01:21.3]} 50.
Kg5 {[%clk 0:01:26]} 50... Qd5+ {[%clk 0:01:20.7]} 51. Kf4 {[%clk 0:01:24.2]}
51... Kc4 {[%clk 0:01:19.3]} 52. Qc8+ {[%clk 0:01:17.6]} 52... Kd3 {[%clk
0:01:13.6]} 53. Qh3+ {[%clk 0:01:03.6]} 53... Kc2 {[%clk 0:01:12.8]} 54. Qh7+
{[%clk 0:00:50.4]} 54... Kb2 {[%clk 0:01:07]} 55. Qh2+ {[%clk 0:00:45.6]} 55...
Ka3 {[%clk 0:01:06.7]} 56. Ke3 {[%clk 0:00:39.3]} 56... Qxa2 {[%clk 0:01:06.1]}
57. Qb8 {[%clk 0:00:38.9]} 57... Qd5 {[%clk 0:01:00.1]} 58. Qa7 {[%clk
0:00:37.9]} 58... b3 {[%clk 0:00:58.1]} 59. Qe7+ {[%clk 0:00:32.8]} 59... Ka2
{[%clk 0:00:58]} 60. Qh4 {[%clk 0:00:19.5]} 60... Qe5+ {[%clk 0:00:45.6]} 61.
Kd3 {[%clk 0:00:18]} 61... Qf5+ {[%clk 0:00:41.3]} 62. Ke3 {[%clk 0:00:15.1]}
62... Qe6+ {[%clk 0:00:40.1]} 63. Kd3 {[%clk 0:00:14.4]} 63... Qd7+ {[%clk
0:00:39.5]} 64. Kc3 {[%clk 0:00:13.9]} 64... Qc6+ {[%clk 0:00:38.6]} 65. Kd3
{[%clk 0:00:12.9]} 65... Qc2+ {[%clk 0:00:30.7]} 66. Ke3 {[%clk 0:00:11.6]}
66... b2 {[%clk 0:00:30.1]} 67. Qh5 {[%clk 0:00:06.5]} 67... Qc3+ {[%clk
0:00:28.4]} 68. Ke2 {[%clk 0:00:05.6]} 68... b1=Q {[%clk 0:00:28]} 69. Qd5+
{[%clk 0:00:05.6]} 69... Qbb3 {[%clk 0:00:27.6]} 70. Qxa5+ {[%clk 0:00:04.7]}
70... Qxa5 {[%clk 0:00:27.2]} 71. Kf2 {[%clk 0:00:03.2]} 71... Qd2+ {[%clk
0:00:26.3]} 72. Kg1 {[%clk 0:00:04.1]} 72... Qb1# {[%clk 0:00:26.9]} 0-1

[Event "Late-Titled-Tuesday-Blitz-October-24-2023"]
[Site "Chess.com"]
[Date "2023.10.24"]
[Round "2"]
[White "hblanco"]
[Black "JackRodgers"]
[Result "1-0"]
[WhiteElo "2740"]
[BlackElo "2513"]
[TimeControl "180+1"]
[EndTime "14:19:55 PDT"]
[Termination "hblanco won by resignation"]

1. e4 {[%clk 0:03:00.9]} 1... c5 {[%clk 0:02:59.9]} 2. Nf3 {[%clk 0:02:59.9]}
2... g6 {[%clk 0:03:00.3]} 3. c3 {[%clk 0:02:59.1]} 3... Bg7 {[%clk 0:03:00.3]}
4. d4 {[%clk 0:02:59.8]} 4... cxd4 {[%clk 0:03:01.1]} 5. cxd4 {[%clk 0:03:00.3]}
5... d5 {[%clk 0:03:01.8]} 6. e5 {[%clk 0:03:01]} 6... Bg4 {[%clk 0:03:01.7]} 7.
Bb5+ {[%clk 0:03:01.4]} 7... Nc6 {[%clk 0:03:00.9]} 8. Bxc6+ {[%clk 0:03:02]}
8... bxc6 {[%clk 0:03:01.8]} 9. Nbd2 {[%clk 0:03:02.3]} 9... Nh6 {[%clk
0:03:01.9]} 10. h3 {[%clk 0:03:02.8]} 10... Bxf3 {[%clk 0:03:02.1]} 11. Nxf3
{[%clk 0:03:03.7]} 11... O-O {[%clk 0:03:02.3]} 12. O-O {[%clk 0:03:04.4]} 12...
f6 {[%clk 0:03:01.3]} 13. e6 {[%clk 0:03:04.5]} 13... Nf5 {[%clk 0:02:48.8]} 14.
b3 {[%clk 0:03:02.9]} 14... Nd6 {[%clk 0:02:44.9]} 15. Ba3 {[%clk 0:03:02.9]}
15... Rc8 {[%clk 0:02:27.8]} 16. Re1 {[%clk 0:02:49.3]} 16... f5 {[%clk
0:02:27.2]} 17. Ng5 {[%clk 0:02:40.7]} 17... Ne4 {[%clk 0:02:21.5]} 18. Nf7
{[%clk 0:02:40.1]} 18... Qb6 {[%clk 0:02:17.5]} 19. Bb2 {[%clk 0:02:11.9]} 19...
c5 {[%clk 0:02:03.6]} 20. dxc5 {[%clk 0:01:37.3]} 20... Qxc5 {[%clk 0:02:03.4]}
21. Qe2 {[%clk 0:01:23.6]} 21... Nxf2 {[%clk 0:01:31]} 22. Qxf2 {[%clk
0:01:11.6]} 22... Qxf2+ {[%clk 0:01:30.5]} 23. Kxf2 {[%clk 0:01:12.4]} 23...
Rc2+ {[%clk 0:01:17.9]} 24. Re2 {[%clk 0:01:12.3]} 24... Rxe2+ {[%clk
0:01:17.6]} 25. Kxe2 {[%clk 0:01:13.2]} 25... Bxb2 {[%clk 0:01:17.6]} 26. Rd1
{[%clk 0:01:13.8]} 26... d4 {[%clk 0:01:00.8]} 27. Kd3 {[%clk 0:01:11.4]} 27...
Rc8 {[%clk 0:00:58.8]} 28. Rd2 {[%clk 0:01:06.6]} 28... Bc3 {[%clk 0:00:50.4]}
29. Re2 {[%clk 0:01:06.5]} 29... Kg7 {[%clk 0:00:48.1]} 30. Ne5 {[%clk 0:01:04]}
30... a5 {[%clk 0:00:43.4]} 31. Nc4 {[%clk 0:01:02.8]} 31... Kf6 {[%clk
0:00:36.1]} 32. Nb6 {[%clk 0:01:02.3]} 32... Re8 {[%clk 0:00:27.4]} 33. Nd5+
{[%clk 0:00:57]} 33... Kg7 {[%clk 0:00:27.3]} 34. Nxc3 {[%clk 0:00:57.2]} 34...
dxc3 {[%clk 0:00:27.2]} 35. Kxc3 {[%clk 0:00:58.1]} 35... Kf6 {[%clk 0:00:27.2]}
36. a3 {[%clk 0:00:56.6]} 36... Rc8+ {[%clk 0:00:27.4]} 37. Kd4 {[%clk
0:00:56.3]} 37... Rb8 {[%clk 0:00:24.3]} 38. Kc4 {[%clk 0:00:55.8]} 38... Rb6
{[%clk 0:00:22.3]} 39. b4 {[%clk 0:00:53.7]} 39... axb4 {[%clk 0:00:23.2]} 40.
axb4 {[%clk 0:00:54.1]} 40... Rxe6 {[%clk 0:00:19.6]} 41. Rb2 {[%clk 0:00:50.1]}
41... Rb6 {[%clk 0:00:14.5]} 42. Kc5 {[%clk 0:00:49.9]} 42... Rb8 {[%clk
0:00:14.3]} 43. b5 {[%clk 0:00:50.5]} 43... e5 {[%clk 0:00:14.1]} 44. b6 {[%clk
0:00:49.8]} 44... e4 {[%clk 0:00:14.2]} 45. Kd6 {[%clk 0:00:47.8]} 45... f4
{[%clk 0:00:11.5]} 46. Rb4 {[%clk 0:00:47.3]} 46... Kf5 {[%clk 0:00:10.9]} 47.
Rb5+ {[%clk 0:00:47.1]} 47... Kf6 {[%clk 0:00:11.4]} 48. Rb4 {[%clk 0:00:37.9]}
48... Kf5 {[%clk 0:00:08.8]} 49. Rb5+ {[%clk 0:00:36.9]} 49... Kf6 {[%clk
0:00:09.3]} 50. Kc7 {[%clk 0:00:19.6]} 50... Re8 {[%clk 0:00:07.6]} 51. b7
{[%clk 0:00:19.7]} 51... e3 {[%clk 0:00:07.5]} 52. b8=Q {[%clk 0:00:18.8]} 52...
Rxb8 {[%clk 0:00:07.7]} 53. Rxb8 {[%clk 0:00:18.2]} 53... Ke5 {[%clk 0:00:06.9]}
54. Kc6 {[%clk 0:00:06.7]} 54... Kd4 {[%clk 0:00:05.2]} 55. Rd8+ {[%clk
0:00:05.9]} 55... Ke4 {[%clk 0:00:05.4]} 56. Kd6 {[%clk 0:00:05]} 56... g5
{[%clk 0:00:03.7]} 57. Re8+ {[%clk 0:00:03.8]} 57... Kd3 {[%clk 0:00:04.1]} 58.
Ke5 {[%clk 0:00:04.2]} 58... h5 {[%clk 0:00:04.3]} 59. Kf5 {[%clk 0:00:04.7]}
59... g4 {[%clk 0:00:02.8]} 60. hxg4 {[%clk 0:00:05.2]} 60... hxg4 {[%clk
0:00:03.7]} 61. Kxf4 {[%clk 0:00:05.4]} 61... e2 {[%clk 0:00:04.1]} 62. Kxg4
{[%clk 0:00:05.6]} 1-0

[Event "Late-Titled-Tuesday-Blitz-October-24-2023"]
[Site "Chess.com"]
[Date "2023.10.24"]
[Round "2"]
[White "venturov"]
[Black "emiliochess"]
[Result "1/2-1/2"]
[WhiteElo "2516"]
[BlackElo "2318"]
[TimeControl "180+1"]
[EndTime "14:19:59 PDT"]
[Termination "Game drawn by repetition"]

1. e4 {[%clk 0:03:00.9]} 1... c5 {[%clk 0:02:57.4]} 2. Nf3 {[%clk 0:03:01]} 2...
Nc6 {[%clk 0:02:57.5]} 3. d4 {[%clk 0:03:01.2]} 3... cxd4 {[%clk 0:02:57.9]} 4.
Nxd4 {[%clk 0:03:02.1]} 4... d6 {[%clk 0:02:58.1]} 5. Nc3 {[%clk 0:03:01.6]}
5... Nf6 {[%clk 0:02:58.6]} 6. Bc4 {[%clk 0:03:01.6]} 6... e5 {[%clk 0:02:58.5]}
7. Nde2 {[%clk 0:02:49.3]} 7... a6 {[%clk 0:02:58.7]} 8. a4 {[%clk 0:02:42.3]}
8... Be7 {[%clk 0:02:59.6]} 9. O-O {[%clk 0:02:41.5]} 9... O-O {[%clk
0:02:59.8]} 10. Bg5 {[%clk 0:02:35.5]} 10... Be6 {[%clk 0:03:00.1]} 11. Bxf6
{[%clk 0:02:10.3]} 11... Bxc4 {[%clk 0:02:44.8]} 12. Bxe7 {[%clk 0:02:09]} 12...
Qxe7 {[%clk 0:02:41.9]} 13. Re1 {[%clk 0:01:58]} 13... f5 {[%clk 0:02:41.9]} 14.
Ng3 {[%clk 0:01:49.2]} 14... fxe4 {[%clk 0:02:39.2]} 15. Ngxe4 {[%clk
0:01:38.3]} 15... Rad8 {[%clk 0:02:34.3]} 16. Qh5 {[%clk 0:01:25.7]} 16... d5
{[%clk 0:02:31.6]} 17. Ng3 {[%clk 0:01:06.9]} 17... d4 {[%clk 0:02:15.4]} 18.
Nce4 {[%clk 0:01:05.7]} 18... Bd5 {[%clk 0:02:16.1]} 19. Rad1 {[%clk 0:00:49.4]}
19... Bf7 {[%clk 0:02:16.1]} 20. Qe2 {[%clk 0:00:44.2]} 20... Qb4 {[%clk
0:02:13.7]} 21. b3 {[%clk 0:00:33.2]} 21... Bg6 {[%clk 0:02:13.9]} 22. Ng5
{[%clk 0:00:28.8]} 22... Qc5 {[%clk 0:01:55.9]} 23. Ne6 {[%clk 0:00:25.9]} 23...
Qxc2 {[%clk 0:01:53.4]} 24. Nxd8 {[%clk 0:00:19.9]} 24... Qxe2 {[%clk
0:01:26.9]} 25. Rxe2 {[%clk 0:00:18.1]} 25... Rxd8 {[%clk 0:01:27.6]} 26. f3
{[%clk 0:00:15.2]} 26... Rd5 {[%clk 0:01:20.1]} 27. Ne4 {[%clk 0:00:12.9]} 27...
Bxe4 {[%clk 0:01:17.2]} 28. Rxe4 {[%clk 0:00:13.8]} 28... Rc5 {[%clk 0:01:17.8]}
29. f4 {[%clk 0:00:13.5]} 29... exf4 {[%clk 0:01:16.5]} 30. Rxf4 {[%clk
0:00:14.4]} 30... g5 {[%clk 0:01:16.9]} 31. Rg4 {[%clk 0:00:11.2]} 31... Kf7
{[%clk 0:01:16.1]} 32. h4 {[%clk 0:00:10.6]} 32... h6 {[%clk 0:01:05.6]} 33.
hxg5 {[%clk 0:00:10.1]} 33... hxg5 {[%clk 0:01:06.5]} 34. Rg3 {[%clk 0:00:06.5]}
34... Kf6 {[%clk 0:01:03.8]} 35. b4 {[%clk 0:00:04.7]} 35... Rc4 {[%clk
0:01:03.9]} 36. b5 {[%clk 0:00:04.9]} 36... axb5 {[%clk 0:01:04.2]} 37. axb5
{[%clk 0:00:05.8]} 37... Ne5 {[%clk 0:01:04.6]} 38. Ra3 {[%clk 0:00:04.7]} 38...
Rb4 {[%clk 0:01:04.1]} 39. Ra7 {[%clk 0:00:04]} 39... Rxb5 {[%clk 0:01:04.5]}
40. Rxd4 {[%clk 0:00:04.3]} 40... g4 {[%clk 0:01:03.9]} 41. Rf4+ {[%clk
0:00:02.6]} 41... Kg5 {[%clk 0:01:03.8]} 42. Rf1 {[%clk 0:00:03.5]} 42... g3
{[%clk 0:01:03.1]} 43. Ra8 {[%clk 0:00:04]} 43... Ng6 {[%clk 0:00:57.3]} 44. Rg8
{[%clk 0:00:03.9]} 44... Re5 {[%clk 0:00:53.3]} 45. Rb1 {[%clk 0:00:04.1]} 45...
b5 {[%clk 0:00:53.7]} 46. Rb8 {[%clk 0:00:04.3]} 46... Nf4 {[%clk 0:00:44.1]}
47. R8xb5 {[%clk 0:00:04.5]} 47... Rxb5 {[%clk 0:00:31.9]} 48. Rxb5+ {[%clk
0:00:05.4]} 48... Kg4 {[%clk 0:00:32.4]} 49. Kf1 {[%clk 0:00:06.1]} 49... Kh4
{[%clk 0:00:29.5]} 50. Rb4 {[%clk 0:00:04.2]} 50... Kg5 {[%clk 0:00:28.9]} 51.
Ra4 {[%clk 0:00:03.3]} 51... Kf5 {[%clk 0:00:27.8]} 52. Ra5+ {[%clk 0:00:03.5]}
52... Kg4 {[%clk 0:00:28]} 53. Ra3 {[%clk 0:00:03.8]} 53... Kh4 {[%clk
0:00:27.3]} 54. Rf3 {[%clk 0:00:04.3]} 54... Kg4 {[%clk 0:00:27.7]} 55. Kg1
{[%clk 0:00:04.2]} 55... Ne2+ {[%clk 0:00:27.3]} 56. Kf1 {[%clk 0:00:04.4]}
56... Nf4 {[%clk 0:00:28.1]} 57. Ra3 {[%clk 0:00:04.2]} 57... Kh4 {[%clk
0:00:28]} 58. Ra8 {[%clk 0:00:04.9]} 58... Kg4 {[%clk 0:00:27]} 59. Rh8 {[%clk
0:00:05.5]} 59... Kg5 {[%clk 0:00:26.6]} 60. Rg8+ {[%clk 0:00:05.9]} 60... Kh4
{[%clk 0:00:26.7]} 61. Rg7 {[%clk 0:00:04.5]} 61... Nh5 {[%clk 0:00:24.2]} 62.
Rh7 {[%clk 0:00:04.3]} 62... Kg4 {[%clk 0:00:24.8]} 63. Ke1 {[%clk 0:00:03.2]}
63... Nf4 {[%clk 0:00:25.2]} 64. Rg7+ {[%clk 0:00:02.1]} 64... Kh4 {[%clk
0:00:25.3]} 65. Rh7+ {[%clk 0:00:01.9]} 65... Kg4 {[%clk 0:00:25.5]} 66. Kf1
{[%clk 0:00:02.6]} 66... Nh5 {[%clk 0:00:20.5]} 67. Rh8 {[%clk 0:00:01.9]} 67...
Nf4 {[%clk 0:00:20.5]} 68. Ra8 {[%clk 0:00:02.6]} 68... Kf5 {[%clk 0:00:20.6]}
69. Ra3 {[%clk 0:00:03.2]} 69... Kg4 {[%clk 0:00:21]} 70. Rf3 {[%clk 0:00:03.5]}
70... Nh5 {[%clk 0:00:20.6]} 71. Ra3 {[%clk 0:00:03.8]} 71... Nf4 {[%clk
0:00:21.2]} 72. Ra4 {[%clk 0:00:04.5]} 72... Kg5 {[%clk 0:00:21.5]} 73. Ra5+
{[%clk 0:00:04.8]} 73... Kg4 {[%clk 0:00:21.8]} 74. Ra4 {[%clk 0:00:05.2]} 74...
Kg5 {[%clk 0:00:21.9]} 75. Ra5+ {[%clk 0:00:05.7]} 75... Kg4 {[%clk 0:00:21.7]}
1/2-1/2